Cogmind - Beta 16 @@@ ROGUE MODE // 2025.10.24 @ 15:00:44 Player: kiul Result: Destroyed by G-47 Trooper with Particle Gun Performance ------------- Evolutions (2) 1000 Regions Visited (5) 1000 Robots Destroyed (14) 70 Value Destroyed (390) 390 Prototype IDs (1) 20 Alien Tech Used (0) 0 Bonus (132) 132 TOTAL SCORE: 2612 Bonus ------- Follower Combat Kills 132 Cogmind --------- Core Integrity 0/550 Matter 300/300 Energy 99/100 System Corruption 0% Temperature Cool (18) Movement Core (50) Location -8/Materials Parts ------- > --- POWER (2) -------- (None) > --- PROPULSION (5) --- (None) > --- UTILITY (2) ------ (None) > --- WEAPON (2) ------- (None) > --- INVENTORY (5) ---- Medium Storage Unit High-capacity Matter Pod (200) System Shield High-powered Tractor Beam Minigun Peak State ------------ > --- POWER ------------ Light Nuclear Core > --- PROPULSION ------- Cesium-ion Thruster Cesium-ion Thruster Cesium-ion Thruster Cesium-ion Thruster > --- UTILITY ---------- Small Storage Unit Reaction Control System > --- WEAPON ----------- Heavy Particle Gun Light Cannon > --- INVENTORY -------- Improved Heat Sink High-capacity Matter Pod Sensor Array Targeting Computer Improved Weapon Shielding Tractor Beam Heavy Particle Gun Minigun [Rating: 25] Favorites ----------- Power Light Ion Engine Engine Light Ion Engine Power Core Light Nuclear Core Propulsion Aluminum Leg Treads Light Treads Leg Aluminum Leg Flight Unit Cesium-ion Thruster Utility Small Storage Unit Device Reaction Control System Storage Small Storage Unit Hackware System Shield Protection Light Armor Plating Weapon Small Laser Energy Gun Small Laser Ballistic Gun Assault Rifle Ballistic Cannon Light Cannon Launcher Improved Grenade Launcher Slashing Weapon Katana Build | -11 -10 -10 -9 -9 -8 ------- Run | Yrd Mat Min Mat Min Mat Slots Evolved 4 | . . . 2 . 2 Power 1 | . . . . . 1 Propulsion 3 | . . . 2 . 1 Utility . | . . . . . . Weapon . | . . . . . . Parts Attached 27 | 7 . 3 9 3 5 Power 4 | 1 . . 1 1 1 Engine 3 | 1 . . . 1 1 Core 1 | . . . 1 . . Reactor . | . . . . . . Propulsion 11 | 3 . 1 6 1 . Treads 1 | 1 . . . . . Leg 5 | 2 . 1 2 . . Wheel . | . . . . . . Hover . | . . . . . . Flight 5 | . . . 4 1 . Utility 6 | 1 . 1 1 . 3 Device 1 | . . . 1 . . Storage 2 | 1 . . . . 1 Processor . | . . . . . . Hackware 1 | . . . . . 1 Protection 2 | . . 1 . . 1 Artifact . | . . . . . . Weapon 6 | 2 . 1 1 1 1 Energy Gun 2 | 1 . . 1 . . Energy Cannon . | . . . . . . Ballistic Gun 1 | 1 . . . . . Ballistic Cannon 1 | . . 1 . . . Launcher 1 | . . . . . 1 Special Weapon . | . . . . . . Impact Weapon . | . . . . . . Slashing Weapon 1 | . . . . 1 . Piercing Weapon . | . . . . . . Special Melee Weapon . | . . . . . . Unidentified Prototypes 1 | . . . 1 . . Parts Lost 15 | . . 2 . 2 11 Power 4 | . . 1 . 1 2 Propulsion 6 | . . 1 . 1 4 Utility 3 | . . . . . 3 Weapon 2 | . . . . . 2 Highest Loss Streak 10 | . . 2 . 2 10 To Critical Strikes . | . . . . . . Average Backups 6 | . 4 7 7 7 8 Power . | . . . . . . Propulsion 1 | . 2 3 . . . Utility 3 | . 2 4 5 6 6 Weapon . | . . . 1 1 1 Tool/Special . | . . . . . . Unused Backups 15 | . . . 3 1 11 Power . | . . . . . . Propulsion . | . . . . . . Utility 13 | . . . 3 . 10 Weapon 2 | . . . . 1 1 Tool/Special . | . . . . . . Average Slot Usage (%) 84 | . 85 81 90 94 74 Engine 7 | . 14 3 . 4 9 Leg 23 | . 28 25 36 . . Flight 7 | . . . 5 41 31 Device 1 | . . . 1 11 4 Storage 12 | . 14 14 11 11 7 Protection 4 | . . 9 9 . 1 Energy Gun 12 | . 14 14 11 11 7 Ballistic Gun 6 | . 14 5 . . . Ballistic Cannon 4 | . . 8 11 6 . Slashing Weapon 1 | . . . . 4 9 Peak Build Rating 25 | 6 6 6 25 25 24 Average Rating 9 | 4 6 5 13 22 20 On Entrance 11 | . 6 6 6 25 23 Avg Prop Armor Cover (%) . | . . . . . . Naked Turns 2 | . . . . . 2 Heaviest Build 19 | 11 11 12 19 17 19 Greatest Support 40 | 20 20 20 40 20 22 Greatest Overweight (x) 3 | . . 1 3 . . Average Overweight (x) . | . . . . . . Largest Inventory Capacity 10 | 8 8 8 8 8 10 Average Capacity 8 | 7 8 8 8 8 8 Most Carried 10 | 1 7 8 8 8 10 Average Carried 6 | . 4 7 7 7 8 Final Capacity 8 | 8 8 8 8 8 5 Final Carried 8 | 1 7 8 8 8 5 Class Distribution -------------------- 71% | Mutant 16% | Sprinter 12% | Scavenger-Mutant Dominant Class ---------------- Mutant | -10/Materials Mutant | -10/Mines Scavenger-Mutant | -9/Materials Sprinter | -9/Mines Sprinter | -8/Materials Resources | -11 -10 -10 -9 -9 -8 ----------- Run | Yrd Mat Min Mat Min Mat Matter Collected 881 | 241 181 224 152 58 25 Remotely . | . . . . . . Salvage Created 446 | . 118 170 61 43 54 Parts 29 | . 9 7 6 2 5 Haulers Intercepted 1 | . . . 1 . . Recyclers Shooed . | . . . . . . Parts Field Recycled . | . . . . . . Retrieved Matter . | . . . . . . Parts Self-Destructed . | . . . . . . Prevented . | . . . . . . Parts Restored . | . . . . . . Kills | -11 -10 -10 -9 -9 -8 ------- Run | Yrd Mat Min Mat Min Mat Combat Hostiles Destroyed 13 | . 3 5 2 2 1 Melee 1 | . . . . . 1 Guns 8 | . 3 4 1 . . Cannons 4 | . . 1 1 2 . Classes Destroyed 8 | . 2 3 2 1 . Worker 1 | . . 1 . . . Hauler 1 | . . . 1 . . Operator 1 | . 1 . . . . Swarmer 3 | . . . 2 1 . Grunt 4 | . 3 1 . . . Duelist 1 | . . . . 1 . Sentry 3 | . . 2 . . 1 Assembled 2 | . . 2 . . . Best Kill Streak 2 | . 2 2 2 1 1 Combat Bots Only 2 | . 2 2 2 1 1 Max Kills in Single Turn 2 | . 1 2 1 1 1 Gunslinging . | . . . . . . Exploded . | . . . . . . Melee 1 | . . . . . 1 Uniques/NPCs Destroyed . | . . . . . . Combat | -11 -10 -10 -9 -9 -8 -------- Run | Yrd Mat Min Mat Min Mat Hostile Shots Fired 173 | . 30 34 6 15 88 Missed 59 | . 8 11 3 5 32 Hits 114 | . 22 23 3 10 56 Melee 13 | . . 2 . 2 9 Projectile 101 | . 22 21 3 8 47 Critical Strikes 2 | . . 1 . . 1 Damage Taken 1803 | . 251 367 30 129 1026 Core 697 | . 69 55 . 17 556 Absorbed by Shields . | . . . . . . Redirected to Shielding 109 | . . . . . 109 Core Remaining (%) 81 | 100 . 50 . 95 . Volleys Fired 65 | . 25 23 8 9 . Largest 2 | . 2 2 2 2 . Hottest 85 | . 60 70 85 85 . Shots Fired 130 | . 50 46 16 18 . Gun 99 | . 50 32 8 9 . Cannon 31 | . . 14 8 9 . Launcher . | . . . . . . Special . | . . . . . . Kinetic 65 | . 25 23 8 9 . Thermal 65 | . 25 23 8 9 . Explosive . | . . . . . . Electromagnetic . | . . . . . . Robot Hit Streak 12 | . 12 11 5 5 . Robot Miss Streak 5 | . 2 3 5 5 . Penetration Max . | . . . . . . Secondary Targets 1 | . . 1 . . . Max Gunslinging Chain 1 | . . 1 . . . Shots Hit Robots 82 | . 30 30 6 9 7 Core Hits 27 | . 8 11 3 3 2 Critical Kills . | . . . . . . Critical Parts Destroyed . | . . . . . . Critical Strikes . | . . . . . . Melee Attacks 12 | . . . . . 12 Impact . | . . . . . . Slashing 12 | . . . . . 12 Piercing . | . . . . . . Sneak Attacks . | . . . . . . Combat Hostiles . | . . . . . . Follow-up Attacks . | . . . . . . Damage Inflicted 1264 | . 373 423 108 188 172 Guns 690 | . 370 246 38 36 . Cannons 399 | . . 177 70 152 . Explosions . | . . . . . . Melee 172 | . . . . . 172 Ramming 3 | . 3 . . . . Kinetic 690 | . 201 267 70 152 . Thermal 399 | . 169 156 38 36 . Explosive . | . . . . . . Electromagnetic . | . . . . . . Impact . | . . . . . . Slashing 172 | . . . . . 172 Piercing . | . . . . . . Highest Corruption . | . . . . . . Average Corruption . | . . . . . . Corruption Purged . | . . . . . . Corruption Blocked . | . . . . . . Overload Shots . | . . . . . . Overflow Damage 7 | . . 7 . . . Projectiles 7 | . . 7 . . . Explosions . | . . . . . . Melee . | . . . . . . Knockbacks 7 | . . 3 . 4 . Impact . | . . . . . . Kinetic 7 | . . 3 . 4 . Secondary . | . . . . . . Self-Inflicted Damage . | . . . . . . Shots . | . . . . . . Rammed . | . . . . . . Targets Rammed 1 | . 1 . . . . Kicked 1 | . 1 . . . . Crushed . | . . . . . . Highest Temperature 111 | . 30 43 60 111 14 Average Temperature 25 | . 13 10 21 66 4 Received Heat Transfer 609 | . 135 123 . . 351 Siege Activations . | . . . . . . Martial Activations . | . . . . . . Shielding Activations . | . . . . . . Robots Disrupted . | . . . . . . Combat Hostiles . | . . . . . . Robots Corrupted . | . . . . . . Combat Hostiles . | . . . . . . Parts Fried . | . . . . . . Impact Corruptions . | . . . . . . Robots Melted . | . . . . . . Combat Hostiles . | . . . . . . Parts Melted . | . . . . . . Heat Transferred 898 | . 400 350 74 74 . Parts Sabotaged . | . . . . . . Parts Stolen . | . . . . . . Parts Stripped . | . . . . . . Power Chain Reactions . | . . . . . . Alert | -11 -10 -10 -9 -9 -8 ------- Run | Yrd Mat Min Mat Min Mat Maximum Alert Level 1 | . . . . . 1 Low Security (%) 97 | 100 100 100 100 100 79 Level 1 2 | . . . . . 20 Level 2 . | . . . . . . Level 3 . | . . . . . . Level 4 . | . . . . . . Level 5 . | . . . . . . High Security . | . . . . . . Max Security . | . . . . . . Peak Influence 228 | . 40 63 81 126 228 Initial 40 | . . 3 8 18 40 Average 34 | . 6 14 33 106 156 Influence Increases 763 | . 90 104 138 148 283 Destroy 0b10 Robot/C 440 | . 60 80 100 120 80 Destroy 0b10 Robot/NC 15 | . 5 5 5 . . Destroy Leader 82 | . 10 10 22 20 20 Allied During Kill 30 | . . 8 11 8 3 Disable Machine 15 | . . . . . 15 Destroy Structure 1 | . . 1 . . . Partial Spotted 30 | . . . . . 30 Lose Combat Pursuer 150 | . 15 . . . 135 Influence Decreases 640 | . 82 89 113 90 266 Entered New Map 116 | . . 5 15 30 66 Time Decay 334 | . 82 84 58 40 70 Lost Part 130 | . . . . 20 110 Lost Ally 60 | . . . 40 . 20 Squads Dispatched 2 | . 1 . 1 . . Investigation . | . . . . . . Extermination . | . . . . . . Reinforcement 2 | . 1 . 1 . . Assault . | . . . . . . Garrison . | . . . . . . Intercept . | . . . . . . Searches Triggered . | . . . . . . Construction Impeded . | . . . . . . Haulers Reinforced . | . . . . . . Active Scanning Responses . | . . . . . . Cargo Convoy Interrupts . | . . . . . . Stealth | -11 -10 -10 -9 -9 -8 --------- Run | Yrd Mat Min Mat Min Mat Distress Signals 3 | . 1 . 1 . 1 Communications Jammed . | . . . . . . Distress Signals . | . . . . . . Times Spotted 53 | . 14 8 7 6 18 Peak Tracking Total 14 | . 4 2 3 4 14 Tactical Retreats 7 | . 1 2 . . 4 Traps | -11 -10 -10 -9 -9 -8 ------- Run | Yrd Mat Min Mat Min Mat Traps Triggered . | . . . . . . Indirectly . | . . . . . . Trap Hack Attempts . | . . . . . . Triggered . | . . . . . . Disarmed . | . . . . . . Reprogrammed . | . . . . . . Reused . | . . . . . . Traps Extracted . | . . . . . . Installed . | . . . . . . Triggered . | . . . . . . Machines | -11 -10 -10 -9 -9 -8 ---------- Run | Yrd Mat Min Mat Min Mat Machines Disabled 1 | . . . . . 1 Max in Single Turn 1 | . . . . . 1 Machines Repaired . | . . . . . . Machines Dismantled . | . . . . . . Machines Sabotaged . | . . . . . . Overloaded Fab Kills . | . . . . . . Hacking | -11 -10 -10 -9 -9 -8 --------- Run | Yrd Mat Min Mat Min Mat Machines Accessed 1 | . . . . . 1 Terminals . | . . . . . . Fabricators . | . . . . . . Repair Stations . | . . . . . . Recycling Units . | . . . . . . Scanalyzers 1 | . . . . . 1 Garrison Access . | . . . . . . Total Hacks 3 | . . . . . 3 Successful 1 | . . . . . 1 Failed 2 | . . . . . 2 Catastrophic . | . . . . . . Database Lockouts . | . . . . . . Manual . | . . . . . . Terminals . | . . . . . . Fabricators . | . . . . . . Repair Stations . | . . . . . . Recycling Units . | . . . . . . Scanalyzers 3 | . . . . . 3 Garrison Access . | . . . . . . Terminal Hacks . | . . . . . . Fabricator Hacks . | . . . . . . Repair Station Hacks . | . . . . . . Recycling Unit Hacks . | . . . . . . Scanalyzer 1 | . . . . . 1 Retrieve Study 1 | . . . . . 1 Garrison Access Hacks . | . . . . . . Unauthorized Hacks . | . . . . . . Terminals . | . . . . . . Fabricators . | . . . . . . Repair Stations . | . . . . . . Recycling Units . | . . . . . . Scanalyzers . | . . . . . . Garrison Access . | . . . . . . Data Cores Recovered . | . . . . . . Used . | . . . . . . Hacking Detections 1 | . . . . . 1 Full Trace Events . | . . . . . . Feedback Events . | . . . . . . Feedback Blocked . | . . . . . . Robot Schematics Acquired . | . . . . . . Robots Built . | . . . . . . Authchips . | . . . . . . Time . | . . . . . . Total Robot Build Rating . | . . . . . . Part Schematics Acquired . | . . . . . . Parts Built . | . . . . . . Authchips . | . . . . . . Time . | . . . . . . Total Part Build Rating . | . . . . . . Part Studies Acquired 1 | . . . . . 1 Parts Repaired . | . . . . . . Time . | . . . . . . Parts Recycled . | . . . . . . Recycled Matter . | . . . . . . Retrieved Matter . | . . . . . . Retrieved Components . | . . . . . . Parts Scanalyzed . | . . . . . . Part Schematics Acquired . | . . . . . . Parts Damaged . | . . . . . . Bothacking | -11 -10 -10 -9 -9 -8 ------------ Run | Yrd Mat Min Mat Min Mat Used RIF Installer . | . . . . . . Robots Hacked . | . . . . . . Non-combat . | . . . . . . Combat . | . . . . . . Robot Hacks Applied . | . . . . . . Relay Couplers Released . | . . . . . . Fabnet Peak Effective % . | . . . . . . Robots Rewired . | . . . . . . Allies Hacked . | . . . . . . Hacks Repelled . | . . . . . . Allies | -11 -10 -10 -9 -9 -8 -------- Run | Yrd Mat Min Mat Min Mat Total Allies 3 | . . 3 . . . Largest Group 3 | . . 3 3 1 1 Highest-Rated Group 40 | . . 40 40 16 16 Highest-Rated Ally 16 | . . 16 16 16 16 Total Orders 1 | . . . . 1 . AID 1 | . . . . 1 . Ally Attacks 36 | . . 8 11 12 5 Total Damage 425 | . . 89 109 154 73 Kills 11 | . . 1 3 4 3 Allies Corrupted . | . . . . . . Allies Melted . | . . . . . . Intel | -11 -10 -10 -9 -9 -8 ------- Run | Yrd Mat Min Mat Min Mat Active Infowar (turns) . | . . . . . . Robot Analysis Total . | . . . . . . Derelict Logs Recovered . | . . . . . . Drone Launches . | . . . . . . Drone Recoveries . | . . . . . . Exploration | -11 -10 -10 -9 -9 -8 ------------- Run | Yrd Mat Min Mat Min Mat Turns Passed 1337 | 61 511 352 186 80 147 Spaces Moved 1096 | 46 325 179 136 83 327 Core 7 | 6 . . . . 1 Treads . | . . . . . . Legs 627 | 40 325 179 83 . . Wheels . | . . . . . . Hover . | . . . . . . Flight 462 | . . . 53 83 326 Fastest Speed 26 | 50 120 120 26 26 27 Average Speed 81 | 110 120 124 86 26 27 Slowest Speed 305 | 120 120 190 305 29 50 Overloaded Moves . | . . . . . . Propulsion Burnouts . | . . . . . . Robots Hopped 17 | . . . . . 17 Potential Cave-ins . | . . . . . . Cave-ins Triggered . | . . . . . . Exploration Rate (%) 25 | 3 46 37 13 13 42 Regions Visited 5 Branch Regions 2 Pre-discovered Areas . | . . . . . . Known Exits Taken . | . . . . . . Unknown Exits Taken 5 | 1 1 1 1 1 . Scrap Searched . | . . . . . . Spaces Dug . | . . . . . . Terrain Destroyed . | . . . . . . Melee . | . . . . . . Projectile . | . . . . . . AOE . | . . . . . . Terrain Rammed . | . . . . . . Walls Destroyed . | . . . . . . Machines Disabled . | . . . . . . Actions | -11 -10 -10 -9 -9 -8 --------- Run | Yrd Mat Min Mat Min Mat Total 1370 | 53 396 261 187 121 352 Wait 151 | . 40 55 19 25 12 Move 1059 | 45 324 178 135 82 295 Hop 15 | . . . . . 15 Pick Up 21 | . 6 2 6 1 6 Fast Attach 12 | 7 . 1 1 2 1 Attach 8 | . . 1 4 . 3 Detach 4 | 1 . . 2 . 1 Swap 11 | . . 1 7 1 2 Drop 11 | . . . 5 1 5 Fire 65 | . 25 23 8 9 . Melee 12 | . . . . . 12 Ram . | . . . . . . Kick 1 | . 1 . . . . Crush . | . . . . . . Escape Stasis . | . . . . . . Rewire . | . . . . . . Trap . | . . . . . . Miscellaneous . | . . . . . . Route ------- -11/Scrapyard -10/Materials (discovered 2 exits: [*Mat] / [*Min]) -10/Mines -9/Materials -9/Mines -8/Materials History --------- Turn | Location | Event 10 | -11/Scrapyard | Discovered new exit (range 16) 62 | -11/Scrapyard | Entered Materials 310 | -10/Materials | Build established: Mutant 329 | -10/Materials | Discovered new exit (range 12) 554 | -10/Materials | Discovered new exit (range 16) 573 | -10/Materials | Entered Mines 574 | -10/Mines | Assembled infested the area 576 | -10/Mines | Met a Derelict bent on vengeance 807 | -10/Mines | Assisted by bots powering up and referring to "LRC-V3" 915 | -10/Mines | Discovered new exit (range 9) 925 | -10/Mines | Entered Materials 925 | -9/Materials | Accompanied by 3 allies 925 | -9/Materials | Evolved 2 slots: Propulsion x2 1073 | -9/Materials | Discovered new exit (range 16) 1111 | -9/Materials | Entered Mines 1111 | -9/Mines | Accompanied by 1 ally 1166 | -9/Mines | Discovered new exit (range 11) 1191 | -9/Mines | Entered Materials 1191 | -8/Materials | Accompanied by 1 ally 1191 | -8/Materials | Evolved 2 slots: Power x1, Propulsion x1 1327 | -8/Materials | Core integrity fell below 50% 1334 | -8/Materials | Core integrity fell below 20% 1338 | -8/Materials | Destroyed by G-47 Trooper with Particle Gun Last Messages --------------- Node. 01241_ Dropped Signal Interpreter. 01242_ Acquired Imp. Signal Interpreter. 01252_ Reaction Control System destroyed. 01256_ K-01 Serf collects debris. 01288_ W-25 Informer sends out distress signal. 01292_ Acquired System Shield. 01300_ Y-45 Defender destroyed. 01302_ Acquired 25 matter. 01304_ Cesium-ion Thruster+ destroyed. 01304_ Dropped Hvy. Particle Gun. 01306_ Lgt. Ion Engine destroyed. 01309_ Acquired Imp. Grenade Launcher. 01317_ Flight Unit destroyed. 01318_ Cesium-ion Thruster+ destroyed. 01321_ System Shield destroyed. 01328_ Imp. Grenade Launcher destroyed. 01331_ Lgt. Ion Engine destroyed. 01334_ Imp. Weapon Shielding destroyed. 01336_ Katana destroyed. Map ----- +----------------------------------------------------+ | ???????????# #????# ??# # #? | | ???????????# #????# """ # # #? | | ?????######### ###????# """"" # #######? | | ?????# # #??????# """"" # #??????? | | ?????#! + #??????# """"" ###########??????? | | ?????# # ######## """ #????????????????? | | ?????# "Y" # # ]#????????????????? | | ?????# """ ?# # """ #????????????????? | | ??????######?# + """"" #????????????????? | | ?????????????# # """"" #????????????????? | | ????????#######+### # """"" #????????????????? | | ????????# # # """ #????????????????? | | ????????# """ """ # # #????????????????? | | ???????# """ """ # # #????????????????? | | ???????## """ """ # # #????????????????? | | ????????# # + =#????????????????? | | ????????# " # = #????????????????? | | ????????# # #########????????????????? | | ? ??????# """T""" # #????????????????????????? | | ?############## #????????????????????????? | | #????????????????????????? | | #????????????????????????? | | ?? #????????????????????????? | | ??? ###########??????????????? | | ???? #!l = #??????????????? | | ???###/############ #@! ! #??????????????? | | ???# #??????# #/ #??????????????? | | ???# #??????# #ggg""" !#??????????????? | | ???# ######## gYg""""" #??????????????? | | ???# + # """"" #??????????????? | | ???# " " ######## # """"" #??????????????? | | ???# "R" #??????# + """ #??????????????? | | ???# """ ########/#"###########????????????????? | | ???########## ]#??????????????????? | | ????????????# """[[ ![ #??????????????????? | | ????????????# "R"%!= #??????????????????? | | ????????????# " "!""" """ """ #??????????????????? | | ????????????# """ """ """ #??????????????????? | | ????????????# """ """ """ #??????????????????? | | ????????????#= ???????????????????? | | ????????????##### ############???????????????????? | | ????????????????###??????????????????????????????? | | ?????????????????????????????????????????????????? | | ?????????????????????????????????????????????????? | | ?????????????????????????????????????????????????? | | ?????????????????????????????????????????????????? | | ?????????????????????????????????????????????????? | | ?????????????????????????????????????????????????? | | ?????????????????????????????????????????????????? | | ?????????????????????????????????????????????????? | +----------------------------------------------------+ Best States ------------- Heat Dissipation 31 Energy Generation 14 Energy Capacity 160 Matter Stores 300 Matter Capacity 300 Sight Range 16 Terrain Scan Density 10 Armor Coverage 150 Weapon Shielding 66 Evasion (%) 72 Defensive Hacking 10 Item Schematics ----------------- None Robot Schematics ------------------ None Fabricated ------------ Nothing Repaired ---------- Nothing Studied --------- Cesium-ion Thruster | -8/Materials | Hacked Alien Tech Used ----------------- None Achievements -------------- I Survived The Infestation Item+ Challenges ------------ None Game ------ Seed BehemothDeflectorOptics Manual? 0 Play Time 00:28:11 Cumulative 23.8 hours Start 2025.10.24 @ 14:30:15 End 2025.10.24 @ 15:00:44 Sessions 1 Manual Loads 0 Difficulty Rogue Special Mode None Game No. 38 Rogue 38 Adventurer 0 Explorer 0 Win Type - Total 0 Types 0/0/0/0/0/0/0/0/0/0 Lore% 9 Gallery% 24 Achievement% 13 Wizard Run 0 Options --------- Layout 1 ASCII 0 Keyboard 1 Movement Arrows Keybinds 0 Fullscreen 1 Font 16/SmallcapsGlow Map View 55x38 Zoom Use 0% Tactical HUD 1 Map Filters NONE Filters NONE Steam 1 RUN: 9b35f281-2e6b-4d1a-8f58-8da1d834114c